bitfinex-derivatives/quotes_ETHF0:USTF0_20251008
["timestamp","ask_amount","ask_price","bid_price","bid_amount"]
[1759942916476,0.40002,4498.3,4497.6,0.9325]
[1759942916677,0.40006,4497.9,4497.6,0.9325]
[1759942916977,0.40006,4497.9,4497.5,0.3746]
[1759942916978,0.223,4497.8,4497.5,0.3746]
[1759942917180,0.62306,4497.8,4497.6,0.9325]
[1759942917368,0.4029,4497.8,4497.6,0.9325]
[1759942917571,6.26308744,4497.7,4497.0,1.3071]
[1759942917775,0.40011,4497.4,4497.0,0.3746]
[1759942917974,0.223,4497.3,4497.0,0.77473]
[1759942918274,0.40012,4497.2,4497.0,0.3746]
[1759942918470,3.09838744,4497.3,4497.1,0.9325]
[1759942918779,0.2878,4497.1,4497.0,1.45103]
[1759942919079,0.7986,4497.1,4497.0,1.9834]
[1759942919382,0.5756,4497.1,4497.0,1.3071]
[1759942919680,0.7986,4497.1,4497.0,1.9834]
[1759942919876,0.2878,4497.1,4497.0,2.6577]
[1759942920075,0.5108,4497.1,4497.0,2.6577]
[1759942920379,0.5108,4497.1,4496.1,1.00054]
[1759942920380,3.91332905,4497.1,4496.5,1.30871349]
[1759942920579,0.5756,4496.6,4496.5,1.30871349]
[1759942920780,0.7986,4496.6,4496.5,1.30871349]
[1759942920973,0.9785,4496.6,4496.5,0.00161349]
[1759942921282,3.2078,4497.2,4497.0,0.40013]
[1759942921581,3.2078,4497.2,4497.1,0.9325]
[1759942921878,3.4308,4497.2,4497.1,0.9325]
[1759942922178,3.2078,4497.9,4497.1,0.9325]
[1759942922368,3.2078,4497.9,4497.0,0.3746]
[1759942922369,0.223,4497.8,4497.7,0.9325]
[1759942922675,3.17767466,4497.8,4497.7,0.9325]
[1759942923081,3.17767466,4497.8,4497.5,1.3071]
[1759942923082,0.40007,4497.7,4497.5,1.3071]
[1759942923271,0.40007,4497.7,4497.6,0.9325]
[1759942923669,2.95467466,4497.8,4497.5,0.3746]
[1759942923876,2.95467466,4497.8,4497.7,0.9325]
[1759942924069,3.17767466,4497.8,4497.7,0.9325]
[1759942924670,2.95467466,4497.8,4497.7,0.9325]
[1759942924969,3.17767466,4497.8,4497.7,0.9325]
[1759942925878,0.40007,4497.7,4497.5,1.3071]
[1759942926075,0.223,4497.6,4497.5,1.3071]
[1759942926277,0.5756,4497.1,4497.0,0.3746]
[1759942926580,3.2078,4497.9,4497.3,0.6763]
[1759942926581,3.60786,4497.9,4497.3,0.6763]
[1759942926776,0.2878,4497.6,4497.5,2.38349]
[1759942927179,0.5756,4497.6,4497.5,1.3071]
[1759942927585,0.7986,4497.6,4497.5,1.3071]
[1759942928480,0.4758,4497.2,4497.1,0.9758]
[1759942928680,0.6988,4497.2,4497.1,0.9758]
[1759942928881,0.8475,4497.2,4497.1,0.9758]
[1759942929083,0.6988,4497.2,4497.1,1.5906]
[1759942929279,0.8475,4497.2,4496.5,3.58401349]
[1759942929485,0.4758,4496.8,4496.7,1.37595]
[1759942929687,0.6988,4496.8,4496.7,1.37595]
[1759942929986,0.6245,4496.6,4496.5,0.00161349]
[1759942930388,3.45234735,4496.6,4496.5,0.00161349]
[1759942932092,0.4706,4495.7,4495.6,0.9758]
[1759942932291,12.42709362,4496.6,4496.5,0.3987]
[1759942932292,3.06314735,4496.6,4496.5,0.3987]
[1759942932491,3.06314735,4496.6,4496.5,1.3745]
[1759942932492,0.6936,4496.6,4496.5,1.3745]
[1759942932698,3.58820992,4496.6,4496.5,1.3745]
[1759942932992,0.4706,4496.2,4496.0,0.3987]
[1759942933293,3.71729721,4496.1,4496.0,0.00235884]
[1759942934190,8.16784348,4496.1,4496.0,0.00235884]
[1759942934995,13.16784348,4496.1,4496.0,0.00235884]
[1759942935494,0.463,4494.9,4494.8,0.9758]
[1759942935699,0.686,4494.9,4494.6,0.9758]
[1759942936097,0.1447,4494.8,4494.5,3.6065]
[1759942936298,0.463,4494.4,4494.3,0.9758]
[1759942936499,0.686,4494.4,4494.1,0.9758]
[1759942936695,0.8307,4494.4,4494.2,0.9758]
[1759942937001,0.686,4494.4,4494.2,0.9758]
[1759942937196,0.686,4494.4,4494.3,0.9758]
[1759942937889,0.8307,4494.4,4494.0,0.80133799]
[1759942938094,0.6077,4494.4,4494.1,0.9758]
[1759942938292,3.3525,4495.4,4494.5,0.3987]
[1759942938499,0.463,4495.2,4495.1,0.9758]
[1759942938794,0.463,4495.2,4495.1,1.5906]
[1759942938999,3.2078,4495.4,4495.3,2.2169]
[1759942939390,3.6623,4495.4,4495.3,2.2169]
[1759942939592,0.463,4495.1,4494.9,0.40032]
[1759942939795,0.463,4495.1,4495.0,2.6156]
[1759942939993,0.686,4495.1,4495.0,1.3745]
[1759942940292,0.463,4494.6,4494.5,1.77485]
[1759942940489,0.8307,4494.6,4494.5,1.37615]
[1759942940692,0.8307,4494.6,4494.5,2.38965]
[1759942940693,0.686,4494.6,4494.5,2.38965]
[1759942941199,0.463,4494.4,4494.3,4.1836]
[1759942941592,0.463,4494.4,4494.3,4.58398]
[1759942941793,0.463,4494.4,4494.3,4.1836]
[1759942941993,3.6708,4494.4,4494.2,0.40039]
[1759942942199,0.2315,4494.1,4494.0,0.40093799]
[1759942942403,0.6077,4494.1,4494.0,0.00223799]
[1759942942601,3.55880404,4494.1,4494.0,0.00223799]
[1759942943999,0.6077,4493.1,4492.9,0.42275759]
[1759942944193,0.40045,4493.5,4492.9,0.02225759]
[1759942944194,0.463,4493.0,4492.9,0.02225759]
[1759942944398,3.6708,4493.5,4493.4,0.9758]
[1759942944597,0.687,4493.5,4493.4,0.9758]
[1759942944796,3.64620517,4493.5,4493.0,0.3987]
[1759942945002,0.463,4493.2,4493.1,0.9758]
[1759942945197,0.8317,4493.2,4493.0,0.40077537]
[1759942945498,0.6077,4493.1,4493.0,0.00207537]
[1759942945705,0.687,4493.1,4493.0,0.97787537]
[1759942946203,7.39491808,4493.1,4493.0,0.00207537]
[1759942946397,6.99442808,4493.1,4493.0,0.00207537]
[1759942947603,6.77042808,4493.1,4493.0,0.00207537]
[1759942947807,6.99442808,4493.1,4493.0,0.00207537]
[1759942948197,3.41792808,4493.1,4493.0,0.97787537]
[1759942948503,3.41792808,4493.1,4493.0,0.00207537]
[1759942948504,3.78662808,4493.1,4493.0,0.00207537]
[1759942948696,6.77042808,4493.1,4493.0,0.00207537]
[1759942948897,0.40221787,4493.5,4493.0,0.00207537]
[1759942948898,0.00175787,4493.5,4493.0,1.64187537]
[1759942949102,0.46475787,4493.5,4493.4,1.99106]
[1759942949305,0.68875787,4493.5,4493.4,1.99106]
[1759942949706,0.83345787,4493.5,4493.4,0.9758]
[1759942949904,0.83345787,4493.5,4493.0,0.40077537]
[1759942950107,3.6708,4493.4,4493.3,0.9758]
[1759942950309,3.6708,4493.4,4493.0,0.80126537]
[1759942950310,0.6077,4493.2,4493.0,0.80126537]
[1759942950501,0.687,4493.1,4493.0,0.80126537]
[1759942950698,0.687,4493.1,4493.0,1.77706537]
[1759942950897,0.687,4493.1,4493.0,1.37836537]
[1759942952308,0.687,4493.1,4493.0,1.77706537]
[1759942953611,0.8317,4493.1,4493.0,0.00207537]
[1759942955414,0.463,4493.1,4493.0,2.61767537]
[1759942955712,0.4555,4493.1,4493.0,2.61767537]
[1759942955909,3.4393,4493.4,4493.3,1.37627]
[1759942956109,0.00175787,4493.5,4493.4,2.2169]
[1759942956412,0.45725787,4493.5,4493.4,2.2169]
[1759942956608,1.00095,4494.4,4493.4,2.2169]
[1759942956609,3.4393,4495.1,4495.0,1.0135]
[1759942956805,4.0395,4495.1,4495.0,0.9758]
[1759942957312,3.8948,4495.1,4495.0,1.9893]
[1759942957505,3.89652087,4495.1,4495.0,1.9893]
[1759942957902,3.89652087,4495.1,4495.0,1.3745]
[1759942958813,3.20952087,4495.1,4495.0,2.5983]
[1759942959014,0.00172087,4495.1,4495.0,2.5983]
[1759942959311,0.22572087,4495.1,4495.0,2.5983]
[1759942959705,3.2078,4495.7,4495.6,1.28886]
[1759942959907,3.2078,4496.2,4496.0,0.3933]
[1759942960210,2.86402018,4496.6,4496.3,0.4002]
[1759942960413,2.86402018,4496.6,4496.5,1.2819]
[1759942960616,3.2078,4497.2,4497.0,0.40014]
[1759942960912,0.00267485,4497.2,4497.0,0.79504599]
[1759942961109,0.224,4497.1,4497.0,1.28350599]
[1759942961717,0.00267485,4497.2,4497.1,0.8886]
[1759942961917,0.22667485,4497.2,4497.1,0.8886]
[1759942962109,0.00267485,4497.2,4497.1,0.8886]
[1759942962419,0.22667485,4497.2,4497.1,0.8886]
[1759942962718,3.83459485,4497.2,4497.1,0.8886]
[1759942963325,3.43447485,4497.2,4497.1,0.8886]
[1759942963816,0.22667485,4497.2,4497.1,0.8886]
[1759942964015,0.62679485,4497.2,4497.1,0.8886]
[1759942966013,0.22667485,4497.2,4497.1,0.8886]
[1759942966318,0.57337485,4497.2,4497.1,0.8886]
[1759942967209,0.40018,4496.6,4496.3,1.3688]
[1759942967414,0.40018,4496.6,4496.3,0.9686]
[1759942967415,0.3362,4496.4,4496.3,0.9686]
[1759942967610,0.73639,4496.4,4496.3,0.9686]
[1759942967812,0.4412,4496.4,4496.2,1.36881]
[1759942968017,0.105,4496.4,4496.2,0.9686]
[1759942968219,0.4002,4496.3,4496.2,0.9686]
[1759942968516,0.223,4496.5,4496.4,0.9686]
[1759942968915,3.13651644,4496.5,4496.4,0.9686]
[1759942969116,3.13651644,4496.5,4496.2,0.00208134]
[1759942969421,3.24151644,4496.5,4496.3,1.3688]
[1759942969719,0.105,4496.4,4496.2,0.00208134]
[1759942970017,3.31369644,4496.5,4496.3,0.9686]
[1759942970219,0.224,4496.4,4496.3,0.9686]
[1759942970419,0.5052,4496.3,4496.2,0.00208134]
[1759942971120,0.103,4495.4,4494.9,3.2078]
[1759942971319,1.00057,4496.1,4495.0,1.3527]
[1759942971320,0.327,4495.3,4495.0,1.3527]
[1759942971526,0.224,4495.2,4495.0,0.3841]
[1759942971729,0.224,4495.2,4495.1,0.9686]
[1759942972227,0.224,4495.2,4495.1,0.97072117]
[1759942973317,3.5348,4495.2,4495.1,0.00212117]
[1759942973725,3.8642,4495.2,4495.1,0.00212117]
[1759942974426,6.70488943,4495.2,4495.1,0.00212117]
[1759942975129,3.17008943,4495.2,4495.1,0.97072117]
[1759942975520,0.1647,4495.6,4495.5,3.04747]
[1759942975822,3.2078,4496.2,4496.1,1.36882]
[1759942976031,3.4318,4496.2,4496.1,1.36882]
[1759942976221,3.2078,4496.2,4496.1,0.9686]
[1759942976414,3.4318,4496.2,4496.1,0.9686]
[1759942976617,0.224,4496.2,4496.1,0.9686]
[1759942977013,3.2078,4496.7,4496.2,0.40021]
[1759942977226,0.224,4496.6,4496.2,0.40021]
[1759942977433,3.23622436,4496.6,4496.3,0.9686]
[1759942977721,0.103,4496.5,4495.7,0.9686]
[1759942977925,0.103,4496.0,4495.3,1.36889]
[1759942978120,0.103,4496.0,4495.0,0.3841]
[1759942978121,0.50328,4495.4,4495.2,1.3689]
[1759942978322,0.224,4495.3,4495.2,1.3689]
[1759942978524,0.224,4495.3,4495.2,0.9686]
[1759942979926,0.40029,4495.4,4495.3,0.9686]
[1759942980229,3.56376028,4495.4,4495.3,0.9686]
[1759942981626,3.16347028,4495.4,4495.3,0.9686]
[1759942982830,0.40027,4495.6,4495.5,1.3527]
[1759942983018,0.62427,4495.6,4495.5,1.3527]
[1759942983723,0.95367,4495.6,4495.5,1.3527]
[1759942983926,0.3294,4495.4,4495.3,1.36889]
[1759942984228,0.3294,4495.4,4495.3,0.9686]
[1759942984428,0.3294,4495.4,4495.3,1.62]
[1759942984625,3.77272,4496.1,4496.0,1.3527]
[1759942984827,4.16142,4496.1,4496.0,1.3527]
[1759942985025,7.03545544,4496.1,4496.0,0.9686]
[1759942985219,0.3294,4495.7,4495.6,0.40026]
[1759942985425,0.5534,4495.7,4495.6,0.9686]
[1759942985731,0.5534,4495.7,4495.6,2.02026]
[1759942986031,0.5534,4495.7,4495.5,0.3841]
[1759942986032,0.3294,4495.2,4495.1,1.37103117]
[1759942986230,0.9537,4495.2,4495.1,0.97072117]
[1759942986831,0.9537,4495.2,4495.1,0.00212117]
[1759942986832,1.0567,4495.2,4495.1,0.00212117]
[1759942987130,3.94351072,4495.2,4495.1,0.00212117]
[1759942988330,0.1231,4495.5,4495.4,1.95388]
[1759942988527,0.1231,4495.5,4495.4,2.55648]
[1759942988732,0.3471,4495.5,4495.4,2.55648]
[1759942988932,0.1231,4495.5,4495.4,2.55648]
[1759942989240,3.2847,4496.2,4495.6,0.99316]
[1759942989241,0.1231,4495.7,4495.6,0.99316]
[1759942989429,0.4702,4495.7,4495.6,1.95386]
[1759942989733,0.4702,4495.7,4495.6,0.9607]
[1759942989933,3.4050445,4495.7,4495.6,0.9607]
[1759942990129,3.8822045,4495.7,4495.5,0.78737]
[1759942990329,0.64649,4495.4,4495.2,0.9607]
[1759942990529,0.2462,4495.2,4495.1,1.19745167]
[1759942990838,0.4702,4495.2,4495.1,0.40243117]
[1759942991033,0.4702,4495.2,4495.1,1.36313117]
[1759942991239,3.46841101,4495.2,4495.1,0.00212117]
[1759942992035,6.67621101,4495.2,4495.1,0.00212117]
[1759942992636,6.37531101,4495.2,4495.1,1.55572117]
[1759942992828,3.678,4495.2,4495.1,1.55572117]
[1759942993035,3.678,4495.2,4495.1,0.96282117]
[1759942993333,0.2462,4495.2,4495.1,1.55572117]
[1759942993536,0.4702,4495.2,4495.1,1.55572117]
[1759942993832,0.40026,4495.7,4495.1,0.00212117]
[1759942994033,3.2078,4495.8,4495.7,2.55645]
[1759942994232,3.4318,4495.8,4495.7,2.55645]
[1759942994429,0.1231,4496.4,4495.9,1.0006]
[1759942994628,0.40017,4496.6,4496.5,0.3871]
[1759942994833,0.0769,4496.5,4496.3,0.4002]
[1759942995452,0.0769,4496.5,4496.3,1.3609]
[1759942995740,0.224,4496.6,4496.5,0.40018]
[1759942996834,0.224,4496.6,4496.5,1.36088]
[1759942997940,0.224,4496.6,4496.5,0.9607]
[1759942998139,0.224,4496.6,4496.4,0.40019]
[1759942998339,0.3009,4496.6,4496.4,0.40019]
[1759942998540,0.3009,4496.6,4496.4,1.36089]
[1759942998740,0.2462,4496.5,4496.4,1.36089]
[1759942999337,0.0769,4496.5,4496.0,1.3478]
[1759942999545,0.3231,4496.1,4496.0,0.40023]
[1759942999735,0.5471,4496.1,4496.0,1.36093]
[1759943000036,0.3471,4496.1,4496.0,2.34093]
[1759943000241,0.224,4496.1,4496.0,2.94353]
[1759943000634,0.2462,4496.6,4496.5,0.40018]
[1759943000940,0.1231,4497.1,4497.0,1.38014]
[1759943001134,0.3471,4497.1,4497.0,2.94344]
[1759943001340,0.4702,4497.1,4497.0,2.94344]
[1759943001638,0.4702,4497.1,4496.6,1.00043]
[1759943001639,0.3231,4496.7,4496.6,0.40017]
[1759943001842,0.2462,4496.2,4496.1,1.36092]
[1759943002046,0.2462,4496.2,4496.1,1.95382]
[1759943002047,0.4692,4496.2,4496.1,1.95382]
[1759943003252,0.4692,4496.2,4496.1,1.5536]
[1759943004448,0.4692,4496.2,4496.1,0.9607]
[1759943006345,0.0769,4496.1,4496.0,0.40023]
[1759943006549,0.40027,4495.6,4495.3,1.7557205]
[1759943006746,0.3231,4495.2,4495.1,0.00212117]
[1759943007248,0.5461,4495.2,4495.1,0.96282117]
[1759943008047,0.5461,4495.2,4495.1,0.00212117]
[1759943008444,3.50315392,4495.2,4495.1,0.00212117]
[1759943009850,6.71095392,4495.2,4495.1,0.00212117]
[1759943010945,6.28795392,4495.2,4495.1,2.15832117]
[1759943011145,3.42625392,4495.2,4495.1,2.15832117]
[1759943011338,2.95705392,4495.2,4495.1,2.15832117]
[1759943011548,3.42625392,4495.2,4495.1,2.15832117]
[1759943011750,0.4692,4495.2,4495.1,1.55572117]
[1759943011947,3.38491152,4495.2,4495.1,1.55572117]
[1759943012149,3.38491152,4495.2,4495.1,0.96282117]
[1759943012553,6.66961152,4495.2,4495.1,0.96282117]
[1759943012854,6.66961152,4495.2,4495.1,0.00212117]
[1759943013554,6.59371152,4495.2,4495.1,0.96282117]
[1759943013850,6.67061152,4495.2,4495.1,0.96282117]
[1759943014550,6.67061152,4495.2,4495.1,0.00212117]
[1759943018156,7.07091152,4495.2,4495.1,0.00212117]
[1759943021047,7.2262992,4495.2,4495.1,0.00212117]
[1759943022655,7.07091152,4495.2,4495.1,0.00212117]
[1759943024954,6.83580447,4495.2,4495.1,0.00212117]
[1759943025255,1.00078,4495.1,4494.1,1.7051205]
[1759943025460,6.34751152,4495.2,4494.1,0.9101]
[1759943025461,0.40038,4494.4,4494.1,0.9101]
[1759943025651,0.40036,4494.5,4494.4,0.40037]
[1759943025858,0.62436,4494.5,4494.4,0.40037]
[1759943026051,3.56034697,4494.5,4494.4,0.40259976]
[1759943026356,3.56034697,4494.5,4494.4,0.00222976]
[1759943028557,3.33634697,4494.5,4494.4,0.00222976]
[1759943028856,3.2078,4495.2,4494.6,1.538]
[1759943029058,3.2078,4495.2,4495.1,0.9101]
[1759943029253,3.4318,4495.2,4495.1,1.538]
[1759943029553,3.4318,4495.2,4495.1,1.31041]
[1759943029556,6.33886022,4495.2,4495.1,1.31041]
[1759943030755,3.60805,4495.7,4495.1,0.9101]
[1759943030954,0.224,4495.6,4495.5,1.65547]
[1759943031258,3.15601036,4495.6,4495.5,1.65547]
[1759943032756,3.15601036,4495.6,4495.2,0.4003]
[1759943032950,3.15601036,4495.6,4495.0,1.2552]
[1759943033151,3.2078,4495.2,4495.1,1.31041]
[1759943033350,3.4318,4495.2,4495.1,1.31041]
[1759943033753,3.2078,4495.2,4495.1,1.31041]
[1759943033952,3.4318,4495.2,4495.1,1.31041]
[1759943035151,3.4318,4495.2,4495.1,2.56931]
[1759943035753,3.4318,4495.2,4495.1,1.93831]
[1759943037254,3.4318,4495.2,4495.1,2.7333305]
[1759943039860,3.2078,4495.2,4495.1,2.7333305]
[1759943040060,0.40027,4495.5,4495.4,0.40028]
[1759943040254,0.223,4495.5,4495.2,1.31039]
[1759943040464,3.23788698,4495.4,4495.1,0.7950205]
[1759943040655,0.223,4495.3,4495.2,0.9101]
[1759943041361,2.83760698,4495.4,4495.3,0.9101]
[1759943041562,3.2078,4495.7,4495.6,0.40026]
[1759943041860,3.4308,4495.7,4495.6,1.93826]
[1759943043263,3.83105,4495.7,4495.6,1.93826]
[1759943043765,3.4308,4495.7,4495.6,1.93826]
[1759943045066,3.83105,4495.7,4495.6,1.93826]
[1759943045365,3.83105,4495.7,4495.6,1.538]
[1759943045561,3.83105,4495.7,4495.6,1.93826]
[1759943045762,3.4308,4495.7,4495.6,1.93826]
[1759943046163,3.83105,4495.7,4495.6,0.9101]
[1759943046568,3.83105,4495.7,4495.6,1.31036]
[1759943047567,3.83105,4495.7,4495.6,1.93826]
[1759943049770,3.4308,4495.7,4495.6,1.93826]
[1759943050069,0.223,4495.7,4495.6,2.56926]
[1759943050266,1.20113235,4496.0,4495.9,1.29824]
[1759943050466,3.2078,4496.2,4496.1,1.91872]
[1759943050662,3.4308,4496.2,4496.1,2.51482]
[1759943050959,1.19413395,4496.9,4496.1,2.51482]
[1759943050960,3.2078,4496.7,4496.5,0.40018]
[1759943051162,5.60574115,4497.2,4497.0,0.3471]
[1759943051363,3.21047485,4497.2,4497.1,2.1146]
[1759943051773,3.43347485,4497.2,4497.1,2.1146]
[1759943052264,1.19413395,4498.7,4498.3,2.51462]
[1759943052464,0.223,4498.6,4498.5,0.3471]
[1759943052666,1.42413235,4498.6,4498.5,0.3471]
[1759943052869,4.35239784,4498.6,4498.5,0.3471]
[1759943053372,4.35517453,4498.6,4498.5,1.24691761]
[1759943054070,3.15404218,4498.6,4498.5,1.24691761]
[1759943057877,0.00277669,4498.6,4498.5,7.86352761]
[1759943058178,3.2078,4499.7,4499.6,2.1146]
[1759943058377,3.4308,4499.7,4499.6,2.1146]
[1759943058580,3.2078,4500.2,4500.0,0.3471]
[1759943058774,0.39984,4500.4,4500.0,0.9676]
[1759943058980,2.91888612,4500.2,4500.1,0.898]
[1759943059183,3.14188612,4500.3,4500.1,0.898]
[1759943059377,0.62285,4500.3,4500.0,0.74697]
[1759943059584,2.91888612,4500.2,4500.1,0.898]
[1759943060084,2.91888612,4500.2,4500.1,1.5185]
[1759943060286,3.14188612,4500.2,4500.1,1.5185]
[1759943061283,2.91888612,4500.2,4500.1,1.5185]
[1759943061579,0.00229022,4500.4,4500.3,1.5185]
[1759943061779,0.22529022,4500.4,4500.3,1.5185]
[1759943061981,0.00229022,4500.4,4500.3,2.1146]
[1759943062178,0.22529022,4500.4,4500.3,2.1146]
[1759943068990,3.06707979,4500.4,4499.9,0.39988]
[1759943069291,0.39985,4500.3,4500.1,0.898]
[1759943069491,0.39986,4500.1,4500.0,1.2451]
[1759943069697,0.62286,4500.1,4500.0,1.2451]
[1759943070691,0.62286,4500.1,4499.9,0.39988]
[1759943070692,0.39989,4499.9,4499.7,0.39989]
[1759943070891,0.62289,4499.8,4499.7,0.898]
[1759943071195,3.51219994,4499.8,4499.7,0.898]
[1759943073392,0.39991,4499.6,4499.5,1.2451]
[1759943073599,0.39991,4499.6,4499.0,0.3471]
[1759943073600,0.223,4499.6,4499.0,1.2451]
[1759943073895,0.39994,4499.2,4499.1,0.898]
[1759943074097,0.62294,4499.2,4499.1,0.898]
[1759943074997,3.83074,4499.2,4499.1,0.898]
[1759943075291,6.67341707,4499.2,4499.0,0.3471]
[1759943075690,2.84267707,4499.2,4499.1,2.1146]
[1759943075896,0.39991,4499.6,4499.5,1.2451]
[1759943076091,3.2078,4499.8,4499.7,0.898]
[1759943076290,3.4308,4499.8,4499.7,0.898]
[1759943076495,6.34308088,4499.8,4499.7,1.5185]
[1759943076696,6.34308088,4499.8,4499.7,2.1146]
[1759943076997,6.12008088,4499.8,4499.7,2.1146]
[1759943077197,6.34308088,4499.8,4499.7,2.1146]
[1759943077498,6.12008088,4499.8,4499.7,2.1146]
[1759943077701,6.34308088,4499.8,4499.7,2.1146]
[1759943078201,6.34308088,4499.8,4499.7,0.898]
[1759943078796,6.12008088,4499.8,4499.7,0.898]
[1759943078998,6.34308088,4499.8,4499.7,0.898]
[1759943080291,0.3999,4499.7,4499.5,0.3471]
[1759943080495,0.223,4499.6,4499.5,0.3471]
[1759943080696,0.62291,4499.6,4499.5,1.2258]
[1759943081995,0.62291,4499.6,4499.5,1.62572]
[1759943082192,0.223,4499.6,4499.5,2.78312]
[1759943082998,0.62291,4499.6,4499.5,2.3832]
[1759943083304,0.39993,4499.4,4499.3,0.9172]
[1759943083504,0.223,4499.4,4499.3,1.31713]
[1759943083705,0.62293,4499.4,4499.3,1.91233]
[1759943084400,0.223,4499.4,4499.3,2.47283]
[1759943086502,0.62293,4499.4,4499.3,1.91233]
[1759943087404,0.223,4499.4,4499.3,2.47283]
[1759943088005,0.223,4499.4,4499.3,1.91233]
[1759943088205,0.223,4499.4,4499.3,1.31713]
[1759943088506,0.39995,4499.1,4499.0,1.66426]
[1759943088809,0.62295,4499.1,4499.0,1.66426]
[1759943089000,0.223,4499.1,4499.0,2.25946]
[1759943089200,0.223,4499.1,4499.0,2.81996]
[1759943089806,0.62295,4499.1,4499.0,2.81996]
[1759943090001,0.62295,4499.1,4499.0,1.2643]
[1759943090201,0.62295,4499.1,4499.0,2.25946]
[1759943090602,0.62295,4499.1,4499.0,1.8595]
[1759943091002,0.62295,4499.1,4499.0,2.25946]
[1759943092110,0.62295,4499.1,4499.0,1.8595]
[1759943092407,0.62295,4499.1,4499.0,1.2643]
[1759943096307,0.223,4499.1,4499.0,2.25946]
[1759943096512,0.223,4499.1,4499.0,2.81996]
[1759943096717,0.62295,4499.1,4499.0,2.81996]
[1759943098116,0.223,4499.1,4499.0,2.81996]
[1759943098312,3.60774,4499.2,4499.1,0.99515]
[1759943098518,0.3999,4499.7,4499.6,0.5952]
[1759943098711,0.6229,4499.7,4499.6,2.0729]
[1759943098910,3.5737937,4499.7,4499.6,2.0729]
[1759943099116,3.5737937,4499.7,4499.6,0.9172]
[1759943100214,0.39995,4499.1,4499.0,1.1421205]
[1759943100414,0.62295,4499.1,4499.0,0.3471]
[1759943100615,0.62295,4499.1,4499.0,1.2643]
[1759943101319,0.4,4498.6,4498.5,0.00181761]
[1759943101519,3.8308,4498.6,4498.5,1.26491761]
[1759943101720,6.74867145,4498.6,4498.5,1.26491761]
[1759943102523,11.74867145,4498.6,4498.5,0.00181761]
[1759943102722,1.00003,4498.5,4497.5,1.1409205]
[1759943102911,0.40009,4497.6,4497.5,1.2631]
[1759943103115,0.40009,4497.6,4497.2,0.79903908]
[1759943103116,0.4001,4497.4,4497.2,0.79903908]
[1759943103318,0.40012,4497.2,4497.0,1.2631]
[1759943103517,0.40016,4496.9,4496.7,0.9172]
[1759943103724,0.223,4496.8,4496.7,0.91972075]
[1759943103924,4.39286389,4496.8,4496.7,0.00252075]
[1759943104116,4.61586389,4496.8,4496.7,0.00252075]
[1759943105127,9.61586389,4496.8,4496.7,0.00252075]
[1759943105321,0.40024,4495.9,4495.3,0.40028]
[1759943105625,1.49624834,4495.7,4495.6,0.9172]
[1759943105828,3.12764777,4495.8,4495.6,0.9172]
[1759943106031,0.223,4495.8,4495.6,0.9172]
[1759943106230,0.223,4495.8,4495.5,0.9411]
[1759943106421,0.223,4495.8,4495.7,0.9172]
[1759943107822,0.223,4495.8,4495.6,0.00170416]
[1759943107823,0.40025,4495.7,4495.6,0.00170416]
[1759943108020,0.40032,4495.1,4494.8,0.9172]
[1759943108216,3.83112,4495.0,4494.5,0.3459]
[1759943108420,0.62333,4494.9,4494.5,0.3459]
[1759943108626,0.62333,4494.9,4494.6,0.8824]
[1759943108825,3.22547446,4494.8,4494.6,0.8824]
[1759943109028,0.223,4494.7,4494.6,0.88411499]
[1759943111316,0.223,4494.7,4494.6,0.00171499]
[1759943114125,3.17094195,4494.7,4494.6,0.00171499]
[1759943115426,2.94794195,4494.7,4494.6,1.44841499]
[1759943115625,3.17094195,4494.7,4494.6,1.44841499]
[1759943115826,0.223,4494.7,4494.6,1.44841499]
[1759943116025,3.12238351,4494.7,4494.6,1.44841499]
[1759943116827,3.2078,4495.0,4494.6,1.13261499]
[1759943117031,0.223,4494.9,4494.8,1.4467]
[1759943117230,3.10202903,4494.9,4494.8,0.8824]
[1759943117735,0.40034,4494.8,4494.6,0.88411499]
[1759943117927,0.223,4494.7,4494.6,0.88411499]
[1759943119026,3.1704034,4494.7,4494.6,0.00171499]
[1759943122133,2.9474034,4494.7,4494.6,0.00171499]
[1759943122335,3.1704034,4494.7,4494.6,0.00171499]
[1759943124135,3.5707434,4494.7,4494.6,0.00171499]
[1759943124828,3.3477434,4494.7,4494.6,0.00171499]
[1759943125030,3.5707434,4494.7,4494.6,0.00171499]
[1759943129133,0.40042,4493.8,4493.7,0.8824]
[1759943129432,0.40042,4493.8,4493.5,0.3459]
[1759943129433,0.62342,4493.8,4493.5,0.3459]
[1759943129738,0.223,4493.8,4493.6,0.8824]
[1759943130032,0.40043,4493.7,4493.5,0.3459]
[1759943130238,0.223,4493.6,4493.5,1.23027315]
[1759943130438,0.62344,4493.6,4493.5,1.23027315]
[1759943130831,0.223,4493.6,4493.5,1.23027315]
[1759943131239,0.62344,4493.6,4493.5,1.23027315]
[1759943131734,0.62344,4493.6,4493.5,0.00197315]
[1759943132738,0.62344,4493.6,4493.5,1.22877315]
[1759943133241,3.51265851,4493.6,4493.5,0.00197315]
[1759943133636,3.51265851,4493.6,4493.5,0.88437315]
[1759943133838,3.51265851,4493.6,4493.5,0.00197315]
[1759943134430,11.63065081,4493.6,4493.5,0.00197315]
[1759943137635,6.09701851,4493.6,4493.5,0.88437315]
[1759943137841,2.88921851,4493.6,4493.5,2.35967315]
[1759943138036,3.11221851,4493.6,4493.5,2.35967315]
[1759943138338,0.00186385,4493.7,4493.6,2.0133]
[1759943138547,0.00186385,4493.7,4493.6,2.41374]
[1759943138844,0.22486385,4493.7,4493.6,2.41374]
[1759943143041,0.22486385,4493.7,4493.6,1.4467]
[1759943143250,0.22486385,4493.7,4493.6,0.8824]
[1759943145043,0.00186385,4493.7,4493.6,1.84994]
[1759943145243,0.22486385,4493.7,4493.6,2.38664]